[Event "Memorial Ukrainian Chess Warriors 2024"]
[Site "Lviv"]
[Date "2024.03.15"]
[Round "5.19"]
[White "Baziuk, Vladyslav"]
[Black "Kuzyk, Yuriy"]
[Result "1-0"]
[ECO "B42"]
[WhiteElo "2211"]
[BlackElo "1946"]
[Annotator "RC"]
[PlyCount "141"]
[EventDate "2024.03.06"]
[EventType "swiss"]
[EventCountry "UKR"]
[SourceTitle "playchess.com"]
[Source "ChessBase"]
[SourceQuality "1"]
[TimeControl "600+5"]

1. e4 {[%emt 0:00:02]} c5 {[%emt 0:00:01]} 2. Nf3 {[%emt 0:00:02]} e6 {[%emt 0:00:01]} 3. d4 {[%emt 0:00:01]} cxd4 {[%emt 0:00:01]} 4. Nxd4 {[%emt 0:00:01]} a6 {[%emt 0:00:01]} 5. Bd3 {[%emt 0:00:14]} Nc6 {[%emt 0:00:10]} 6. Be3 {[%emt 0:00:29]} Nf6 {[%emt 0:00:06]} 7. c4 {[%emt 0:00:12]} Bb4+ {[%emt 0:00:03]} 8. Nc3 {[%emt 0:00:10]} Ne5 {[%emt 0:02:18]} 9. O-O {[%emt 0:00:17]} Nfg4 {[%emt 0:02:06]} 10. Bf4 {[%emt 0:01:36]} Nxd3 {[%emt 0:01:17]} 11. Qxd3 {[%emt 0:00:03]} Bxc3 {[%emt 0:00:09]} 12. Qxc3 {[%emt 0:02:23]} e5 {[%emt 0:01:08]} 13. Nf5 {[%emt 0:00:28]} d6 {[%emt 0:02:48]} 14. Nxg7+ {[%emt 0:02:31]} Kf8 {[%emt 0:00:02]} 15. Nh5 {[%emt 0:00:02]} Qh4 {[%emt 0:00:30]} 16. f3 {[%emt 0:00:19]} Qxh5 {[%emt 0:00:20]} 17. fxg4 {[%emt 0:00:02]} Bxg4 {[%emt 0:00:04]} 18. Bg3 {[%emt 0:00:14]} Be6 {[%emt 0:00:06]} 19. c5 {[%emt 0:00:07]} Rc8 {[%emt 0:00:05]} 20. Qd2 {[%emt 0:00:29]} dxc5 {[%emt 0:00:20]} 21. Qd6+ {[%emt 0:00:02]} Ke8 {[%emt 0:00:06]} 22. Bxe5 {[%emt 0:00:55]} Rd8 {[%emt 0:00:06]} 23. Qxc5 {[%emt 0:00:39]} Rc8 {[%emt 0:00:04]} 24. Qd4 {[%emt 0:00:14]} Rg8 {[%emt 0:00:05]} 25. Bg3 {[%emt 0:00:20]} Qc5 {[%emt 0:00:03]} 26. Rad1 {[%emt 0:00:03]} Qxd4+ {[%emt 0:00:01]} 27. Rxd4 {[%emt 0:00:01]} Bxa2 {[%emt 0:00:05]} 28. Rd2 {[%emt 0:00:11]} Be6 {[%emt 0:00:04]} 29. Bh4 {[%emt 0:00:12]} f6 {[%emt 0:00:12]} 30. Bxf6 {[%emt 0:00:03]} Rg6 {[%emt 0:00:02]} 31. Be5 {[%emt 0:00:05]} b5 {[%emt 0:00:03]} 32. Bd6 {[%emt 0:00:02]} Kd7 {[%emt 0:00:11]} 33. b4 {[%emt 0:00:02]} Rc4 {[%emt 0:00:04]} 34. Bc5+ {[%emt 0:00:02]} Kc7 {[%emt 0:00:05]} 35. e5 {[%emt 0:00:04]} Re4 {[%emt 0:00:06]} 36. Rf6 {[%emt 0:00:09]} Bc4 {[%emt 0:00:04]} 37. Rxg6 {[%emt 0:00:14]} hxg6 {[%emt 0:00:01]} 38. Kf2 {[%emt 0:00:06]} g5 {[%emt 0:00:05]} 39. Bd6+ {[%emt 0:00:05]} Kc6 {[%emt 0:00:02]} 40. Kf3 {[%emt 0:00:02]} Re1 {[%emt 0:00:02]} 41. Kg4 {[%emt 0:00:02]} Be6+ {[%emt 0:00:15]} 42. Kxg5 {[%emt 0:00:02]} Rf1 {[%emt 0:00:01]} 43. g4 {[%emt 0:00:10]} Rg1 {[%emt 0:00:04]} 44. Rd4 {[%emt 0:00:01]} Bd5 45. h4 {[%emt 0:00:02]} Be6 {[%emt 0:00:14]} 46. h5 {[%emt 0:00:01]} Rh1 {[%emt 0:00:04]} 47. Kg6 {[%emt 0:00:03]} Rh4 {[%emt 0:00:04]} 48. Kg5 {[%emt 0:00:07]} Rh1 {[%emt 0:00:01]} 49. h6 {[%emt 0:00:03]} Bf7 {[%emt 0:00:10]} 50. Rf4 {[%emt 0:00:02]} Be6 {[%emt 0:00:03]} 51. Kg6 {[%emt 0:00:03]} Bg8 {[%emt 0:00:06]} 52. Kg7 {[%emt 0:00:01]} Bd5 {[%emt 0:00:09]} 53. h7 {[%emt 0:00:03]} Be6 {[%emt 0:00:06]} 54. h8=Q {[%emt 0:00:03]} Rxh8 {[%emt 0:00:01]} 55. Kxh8 {[%emt 0:00:02]} Kd5 {[%emt 0:00:02]} 56. g5 {[%emt 0:00:02]} Kc6 {[%emt 0:00:05]} 57. g6 {[%emt 0:00:01]} Kb6 {[%emt 0:00:02]} 58. g7 {[%emt 0:00:02]} a5 {[%emt 0:00:01]} 59. bxa5+ {[%emt 0:00:02]} Kxa5 {[%emt 0:00:01]} 60. g8=Q {[%emt 0:00:03]} Bxg8 {[%emt 0:00:00]} 61. Kxg8 {[%emt 0:00:02]} Kb6 {[%emt 0:00:02]} 62. e6 {[%emt 0:00:05]} Kc6 {[%emt 0:00:01]} 63. e7 {[%emt 0:00:05]} Kd7 {[%emt 0:00:02]} 64. Rf8 {[%emt 0:00:03]} Kxd6 {[%emt 0:00:03]} 65. e8=Q {[%emt 0:00:03]} b4 {[%emt 0:00:01]} 66. Qe4 {[%emt 0:00:12]} Kc5 {[%emt 0:00:01]} 67. Rf5+ {[%emt 0:00:02]} Kd6 {[%emt 0:00:05]} 68. Qd5+ {[%emt 0:00:01]} Kc7 {[%emt 0:00:02]} 69. Rf7+ {[%emt 0:00:01]} Kb6 {[%emt 0:00:01]} 70. Rb7+ {[%emt 0:00:01]} Ka6 {[%emt 0:00:01]} 71. Qb5# {[%emt 0:00:01]} 1-0

[Event "Memorial Ukrainian Chess Warriors 2024"]
[Site "Lviv"]
[Date "2024.03.15"]
[Round "5.20"]
[White "Stolbov, Mikhail G."]
[Black "Tretiak, Igor"]
[Result "1-0"]
[ECO "D03"]
[WhiteElo "2205"]
[BlackElo "1561"]
[Annotator "RC"]
[PlyCount "67"]
[EventDate "2024.03.06"]
[EventType "swiss"]
[EventCountry "UKR"]
[SourceTitle "playchess.com"]
[Source "ChessBase"]
[SourceQuality "1"]
[TimeControl "600+5"]

1. d4 {[%emt 0:00:02]} d5 {[%emt 0:00:00]} 2. Nf3 {[%emt 0:00:01]} Nf6 {[%emt 0:00:01]} 3. Bg5 {[%emt 0:00:01]} e6 {[%emt 0:00:03]} 4. e3 {[%emt 0:00:01]} Be7 {[%emt 0:00:05]} 5. Bd3 {[%emt 0:00:02]} Nbd7 {[%emt 0:00:02]} 6. Nbd2 {[%emt 0:00:02]} c5 {[%emt 0:00:01]} 7. c3 {[%emt 0:00:01]} h6 {[%emt 0:00:02]} 8. Bf4 {[%emt 0:00:01]} O-O {[%emt 0:00:09]} 9. g4 {[%emt 0:00:03]} g5 {[%emt 0:00:46]} 10. Be5 {[%emt 0:00:46]} Nxg4 {[%emt 0:00:35]} 11. h4 {[%emt 0:00:23]} Ngxe5 {[%emt 0:00:39]} 12. Nxe5 {[%emt 0:00:04]} Nxe5 {[%emt 0:00:11]} 13. dxe5 {[%emt 0:00:04]} d4 {[%emt 0:00:33]} 14. exd4 {[%emt 0:01:02]} cxd4 {[%emt 0:00:02]} 15. c4 {[%emt 0:00:18]} Qa5 {[%emt 0:00:34]} 16. Qe2 {[%emt 0:00:23]} Bb4 {[%emt 0:00:24]} 17. O-O-O {[%emt 0:00:54]} Qxa2 {[%emt 0:02:48]} 18. hxg5 {[%emt 0:00:54]} Bc3 {[%emt 0:00:32]} 19. Nb1 {[%emt 0:00:33]} Bxb2+ {[%emt 0:01:14]} 20. Qxb2 {[%emt 0:00:04]} Qxb2+ {[%emt 0:00:02]} 21. Kxb2 {[%emt 0:00:02]} hxg5 {[%emt 0:00:01]} 22. Rdg1 {[%emt 0:00:03]} f6 {[%emt 0:00:15]} 23. exf6 {[%emt 0:00:26]} Rxf6 {[%emt 0:00:02]} 24. Rxg5+ {[%emt 0:00:01]} Kf8 {[%emt 0:00:02]} 25. Rh8+ {[%emt 0:00:16]} Ke7 {[%emt 0:00:05]} 26. Rg7+ {[%emt 0:00:42]} Kd6 {[%emt 0:00:03]} 27. Rd8+ {[%emt 0:00:20]} Kc6 {[%emt 0:00:46]} 28. f3 {[%emt 0:00:06]} Kb6 {[%emt 0:00:12]} 29. Nd2 {[%emt 0:00:04]} a5 {[%emt 0:00:12]} 30. c5+ {[%emt 0:00:07]} Ka7 {[%emt 0:00:03]} 31. Rgg8 {[%emt 0:00:10]} b6 {[%emt 0:00:24]} 32. Rg7+ {[%emt 0:00:59]} Kb8 {[%emt 0:00:02]} 33. c6 {[%emt 0:00:04]} e5 {[%emt 0:00:07]} 34. Rb7# {[%emt 0:00:02]} 1-0

[Event "Memorial Ukrainian Chess Warriors 2024"]
[Site "Lviv"]
[Date "2024.03.15"]
[Round "5.21"]
[White "Marchyshyn, Vasyl"]
[Black "Piuro, Vladyslav"]
[Result "1-0"]
[ECO "B53"]
[WhiteElo "1753"]
[BlackElo "2051"]
[Annotator "RC"]
[PlyCount "91"]
[EventDate "2024.03.06"]
[EventType "swiss"]
[EventCountry "UKR"]
[SourceTitle "playchess.com"]
[Source "ChessBase"]
[SourceQuality "1"]
[TimeControl "600+5"]

1. e4 {[%emt 0:00:02]} c5 {[%emt 0:00:03]} 2. Nf3 {[%emt 0:00:03]} d6 {[%emt 0:00:01]} 3. d4 {[%emt 0:00:01]} cxd4 {[%emt 0:00:01]} 4. Qxd4 {[%emt 0:00:01]} e5 {[%emt 0:00:07]} 5. Qd1 {[%emt 0:00:18]} a6 {[%emt 0:00:04]} 6. Nc3 {[%emt 0:00:03]} Nf6 {[%emt 0:00:06]} 7. Bg5 {[%emt 0:00:15]} Be7 {[%emt 0:00:02]} 8. Bc4 {[%emt 0:00:21]} Be6 {[%emt 0:00:09]} 9. Qe2 {[%emt 0:00:28]} Qc7 {[%emt 0:00:19]} 10. Bb3 {[%emt 0:00:45]} O-O {[%emt 0:00:16]} 11. O-O {[%emt 0:00:05]} Nbd7 {[%emt 0:00:06]} 12. Rfd1 {[%emt 0:00:14]} b5 {[%emt 0:00:11]} 13. Bxf6 {[%emt 0:01:03]} Bxf6 {[%emt 0:00:31]} 14. Qd2 {[%emt 0:00:59]} Be7 {[%emt 0:00:14]} 15. Ng5 {[%emt 0:00:29]} Nc5 {[%emt 0:00:28]} 16. Nd5 {[%emt 0:01:44]} Bxd5 {[%emt 0:00:07]} 17. Bxd5 {[%emt 0:00:02]} Rad8 {[%emt 0:00:29]} 18. Rac1 {[%emt 0:00:26]} Bxg5 {[%emt 0:00:15]} 19. Qxg5 {[%emt 0:00:04]} Ne6 {[%emt 0:00:10]} 20. Qg4 {[%emt 0:00:41]} Nf4 {[%emt 0:00:26]} 21. g3 {[%emt 0:00:09]} Nxd5 {[%emt 0:00:02]} 22. Rxd5 {[%emt 0:00:02]} Qc6 {[%emt 0:00:27]} 23. Rcd1 {[%emt 0:00:12]} Qxc2 {[%emt 0:00:22]} 24. Rxd6 {[%emt 0:00:05]} Rxd6 {[%emt 0:00:03]} 25. Rxd6 {[%emt 0:00:01]} Qb1+ {[%emt 0:00:04]} 26. Qd1 {[%emt 0:01:00]} Qxb2 {[%emt 0:01:11]} 27. Rxa6 {[%emt 0:00:11]} h6 {[%emt 0:00:45]} 28. Qd5 {[%emt 0:00:05]} Kh8 {[%emt 0:02:13]} 29. Rb6 {[%emt 0:00:32]} f5 {[%emt 0:00:21]} 30. Qxb5 {[%emt 0:00:52]} Qc1+ {[%emt 0:01:33]} 31. Kg2 {[%emt 0:00:21]} Qc7 {[%emt 0:00:49]} 32. Rb7 {[%emt 0:00:03]} Qc2 {[%emt 0:00:06]} 33. Qxe5 {[%emt 0:00:06]} Rg8 {[%emt 0:00:31]} 34. Qxf5 {[%emt 0:00:22]} Qxa2 {[%emt 0:00:02]} 35. Qe5 {[%emt 0:00:15]} Qa8 {[%emt 0:00:05]} 36. Rb6 {[%emt 0:00:21]} Kh7 {[%emt 0:00:17]} 37. Qf5+ {[%emt 0:00:03]} Kh8 {[%emt 0:00:00]} 38. Qd5 Qe8 {[%emt 0:00:12]} 39. e5 {[%emt 0:00:13]} Qh5 {[%emt 0:00:03]} 40. Rd6 {[%emt 0:00:08]} Qg5 {[%emt 0:00:07]} 41. e6 {[%emt 0:00:04]} Qe7 {[%emt 0:00:04]} 42. Rd7 {[%emt 0:00:04]} Qe8 {[%emt 0:00:03]} 43. e7 {[%emt 0:00:02]} Qg6 {[%emt 0:00:09]} 44. Rd8 {[%emt 0:00:10]} Re8 {[%emt 0:00:01]} 45. Rxe8+ {[%emt 0:00:05]} Qxe8 {[%emt 0:00:02]} 46. Qd8 1-0

[Event "Memorial Ukrainian Chess Warriors 2024"]
[Site "Lviv"]
[Date "2024.03.15"]
[Round "5.22"]
[White "Fishchuk, Vladyslav"]
[Black "Pivnev, Vladyslav"]
[Result "1-0"]
[ECO "A00"]
[WhiteElo "2203"]
[BlackElo "1597"]
[Annotator "RC"]
[PlyCount "101"]
[EventDate "2024.03.06"]
[EventType "swiss"]
[EventCountry "UKR"]
[SourceTitle "playchess.com"]
[Source "ChessBase"]
[SourceQuality "1"]
[TimeControl "600+5"]

1. Nc3 {[%emt 0:00:02]} Nf6 {[%emt 0:00:03]} 2. e4 {[%emt 0:00:01]} c6 {[%emt 0:00:12]} 3. e5 {[%emt 0:00:12]} Nd5 {[%emt 0:00:01]} 4. Nf3 {[%emt 0:00:02]} d6 {[%emt 0:00:05]} 5. Bc4 {[%emt 0:00:13]} Be6 {[%emt 0:00:45]} 6. Ne4 {[%emt 0:00:44]} Nd7 {[%emt 0:00:36]} 7. Neg5 {[%emt 0:00:28]} Nf4 {[%emt 0:01:25]} 8. Nxe6 {[%emt 0:00:30]} Nxe6 {[%emt 0:00:03]} 9. Bxe6 {[%emt 0:00:13]} fxe6 {[%emt 0:00:02]} 10. O-O {[%emt 0:00:10]} Qa5 {[%emt 0:00:21]} 11. Re1 {[%emt 0:00:53]} O-O-O {[%emt 0:00:27]} 12. exd6 {[%emt 0:00:12]} exd6 {[%emt 0:00:01]} 13. Rxe6 {[%emt 0:00:03]} Qf5 {[%emt 0:00:02]} 14. Re1 {[%emt 0:00:54]} d5 {[%emt 0:00:24]} 15. d4 {[%emt 0:01:19]} Bd6 {[%emt 0:00:02]} 16. Qd3 {[%emt 0:00:08]} Qh5 {[%emt 0:01:12]} 17. Bd2 {[%emt 0:01:16]} Rdf8 {[%emt 0:00:34]} 18. h3 {[%emt 0:00:48]} Nf6 {[%emt 0:00:32]} 19. Ng5 {[%emt 0:00:40]} Qh4 {[%emt 0:03:50]} 20. Ne6 {[%emt 0:01:56]} Ne4 {[%emt 0:00:14]} 21. g3 {[%emt 0:00:50]} Qxh3 {[%emt 0:00:06]} 22. Nxf8 {[%emt 0:00:03]} Rxf8 {[%emt 0:00:01]} 23. Rxe4 {[%emt 0:00:02]} dxe4 {[%emt 0:00:30]} 24. Qxe4 {[%emt 0:00:02]} Kc7 {[%emt 0:00:23]} 25. Re1 {[%emt 0:00:02]} h5 {[%emt 0:00:06]} 26. Bg5 {[%emt 0:00:11]} Rf7 {[%emt 0:00:02]} 27. Qe6 {[%emt 0:00:08]} Qxe6 {[%emt 0:00:02]} 28. Rxe6 {[%emt 0:00:01]} Kd7 {[%emt 0:00:09]} 29. Re2 {[%emt 0:00:02]} g6 {[%emt 0:00:08]} 30. Kg2 {[%emt 0:00:01]} c5 {[%emt 0:00:01]} 31. dxc5 {[%emt 0:00:15]} Bxc5 {[%emt 0:00:01]} 32. Be3 {[%emt 0:00:03]} Bxe3 {[%emt 0:00:04]} 33. Rxe3 {[%emt 0:00:02]} Rf6 {[%emt 0:00:04]} 34. Rd3+ {[%emt 0:00:02]} Kc7 {[%emt 0:00:01]} 35. b3 {[%emt 0:00:06]} Rc6 {[%emt 0:00:02]} 36. c4 {[%emt 0:00:06]} Ra6 {[%emt 0:00:02]} 37. a4 {[%emt 0:00:01]} Rf6 {[%emt 0:00:03]} 38. a5 {[%emt 0:00:07]} b6 {[%emt 0:00:31]} 39. a6 {[%emt 0:00:02]} Kc6 {[%emt 0:00:03]} 40. Rd5 {[%emt 0:00:03]} Kc7 {[%emt 0:00:03]} 41. b4 {[%emt 0:00:04]} Kc6 {[%emt 0:00:11]} 42. b5+ {[%emt 0:00:01]} Kc7 {[%emt 0:00:00]} 43. Kf1 {[%emt 0:00:04]} Rd6 {[%emt 0:00:02]} 44. Rg5 {[%emt 0:00:20]} Re6 {[%emt 0:00:12]} 45. f4 {[%emt 0:00:09]} Kd6 {[%emt 0:00:04]} 46. Rd5+ {[%emt 0:00:01]} Kc7 {[%emt 0:00:01]} 47. Kf2 {[%emt 0:00:03]} Rd6 {[%emt 0:00:11]} 48. Rxd6 {[%emt 0:00:20]} Kxd6 {[%emt 0:00:02]} 49. Ke3 {[%emt 0:00:01]} Kc5 {[%emt 0:00:03]} 50. Kd3 {[%emt 0:00:01]} Kb4 {[%emt 0:00:10]} 51. Kd4 {[%emt 0:00:01]} 1-0

[Event "Memorial Ukrainian Chess Warriors 2024"]
[Site "Lviv"]
[Date "2024.03.15"]
[Round "5.25"]
[White "Dementyev, Roman L."]
[Black "Andrienko, Artem"]
[Result "0-1"]
[ECO "A04"]
[WhiteElo "1591"]
[BlackElo "2041"]
[Annotator "RC"]
[PlyCount "118"]
[EventDate "2024.03.06"]
[EventType "swiss"]
[EventCountry "UKR"]
[SourceTitle "playchess.com"]
[Source "ChessBase"]
[SourceQuality "1"]
[TimeControl "600+5"]

1. Nf3 {[%emt 0:00:03]} c5 {[%emt 0:00:12]} 2. b3 {[%emt 0:00:04]} Nf6 {[%emt 0:00:15]} 3. Bb2 {[%emt 0:00:02]} g6 {[%emt 0:00:02]} 4. e3 {[%emt 0:00:02]} Bg7 {[%emt 0:00:02]} 5. d4 {[%emt 0:00:02]} cxd4 {[%emt 0:00:17]} 6. exd4 {[%emt 0:00:05]} O-O {[%emt 0:00:03]} 7. Bd3 {[%emt 0:00:02]} Na6 {[%emt 0:00:30]} 8. O-O {[%emt 0:00:21]} Nb4 {[%emt 0:00:02]} 9. Be2 {[%emt 0:00:01]} d5 {[%emt 0:00:04]} 10. c4 {[%emt 0:00:02]} Bf5 {[%emt 0:00:08]} 11. Nc3 {[%emt 0:00:29]} Rc8 {[%emt 0:00:19]} 12. a3 {[%emt 0:00:36]} Nc6 {[%emt 0:00:03]} 13. Bd3 {[%emt 0:00:13]} Bxd3 {[%emt 0:00:08]} 14. Qxd3 {[%emt 0:00:02]} Na5 {[%emt 0:00:01]} 15. Nxd5 {[%emt 0:00:16]} Nxd5 {[%emt 0:00:08]} 16. cxd5 {[%emt 0:00:02]} Qxd5 {[%emt 0:00:02]} 17. b4 {[%emt 0:00:25]} Nc4 {[%emt 0:00:02]} 18. Bc3 {[%emt 0:00:17]} Rfd8 {[%emt 0:00:04]} 19. Rfd1 {[%emt 0:00:02]} e6 {[%emt 0:00:12]} 20. h3 {[%emt 0:00:05]} h6 {[%emt 0:00:03]} 21. Kh1 {[%emt 0:01:40]} b5 {[%emt 0:00:02]} 22. a4 {[%emt 0:00:09]} a6 {[%emt 0:00:02]} 23. axb5 {[%emt 0:00:03]} axb5 {[%emt 0:00:02]} 24. Ra7 {[%emt 0:00:04]} Ra8 {[%emt 0:00:02]} 25. Rda1 {[%emt 0:00:03]} Rxa7 {[%emt 0:00:02]} 26. Rxa7 {[%emt 0:00:02]} Ra8 {[%emt 0:00:01]} 27. Rxa8+ {[%emt 0:00:10]} Qxa8 {[%emt 0:00:02]} 28. Nd2 {[%emt 0:00:04]} Nd6 {[%emt 0:00:32]} 29. Nb3 {[%emt 0:00:18]} Qd5 {[%emt 0:00:03]} 30. Nc5 {[%emt 0:00:12]} Qc4 {[%emt 0:00:18]} 31. Qd2 {[%emt 0:00:36]} Nf5 {[%emt 0:00:07]} 32. Ne4 {[%emt 0:01:15]} Bxd4 {[%emt 0:00:28]} 33. Nf6+ {[%emt 0:01:07]} Kg7 {[%emt 0:00:15]} 34. Bxd4 {[%emt 0:01:05]} Qxd4 {[%emt 0:00:03]} 35. Qxd4 {[%emt 0:00:02]} Nxd4 {[%emt 0:00:01]} 36. Ne8+ {[%emt 0:00:03]} Kf8 {[%emt 0:00:01]} 37. Nd6 {[%emt 0:00:01]} Ke7 {[%emt 0:00:02]} 38. Ne4 {[%emt 0:00:01]} f5 {[%emt 0:00:04]} 39. Nc5 {[%emt 0:00:02]} Kd6 {[%emt 0:00:04]} 40. Kg1 {[%emt 0:00:02]} Nc2 {[%emt 0:00:03]} 41. Nd3 {[%emt 0:00:12]} e5 {[%emt 0:00:08]} 42. Kf1 {[%emt 0:00:05]} e4 {[%emt 0:00:04]} 43. Nf4 {[%emt 0:00:01]} g5 {[%emt 0:00:01]} 44. Ne2 {[%emt 0:00:07]} Nxb4 {[%emt 0:00:05]} 45. Nd4 {[%emt 0:00:01]} Kc5 {[%emt 0:00:15]} 46. Nxf5 {[%emt 0:00:02]} Nd5 {[%emt 0:00:06]} 47. Ng3 {[%emt 0:00:07]} Kd4 {[%emt 0:00:08]} 48. f3 {[%emt 0:00:02]} exf3 {[%emt 0:00:08]} 49. gxf3 {[%emt 0:00:02]} b4 {[%emt 0:00:01]} 50. Ne2+ {[%emt 0:00:16]} Kd3 {[%emt 0:00:03]} 51. Kf2 {[%emt 0:00:11]} Nc3 {[%emt 0:00:08]} 52. h4 {[%emt 0:00:20]} Nxe2 {[%emt 0:00:03]} 53. hxg5 {[%emt 0:00:02]} hxg5 {[%emt 0:00:01]} 54. f4 {[%emt 0:00:01]} Nxf4 {[%emt 0:00:04]} 55. Kg3 {[%emt 0:00:04]} b3 {[%emt 0:00:02]} 56. Kg4 {[%emt 0:00:02]} b2 {[%emt 0:00:02]} 57. Kg3 {[%emt 0:00:02]} b1=Q {[%emt 0:00:06]} 58. Kh2 {[%emt 0:00:01]} Qc2+ {[%emt 0:00:06]} 59. Kg3 {[%emt 0:00:01]} Qg2# {[%emt 0:00:02]} 0-1

[Event "Memorial Ukrainian Chess Warriors 2024"]
[Site "Lviv"]
[Date "2024.03.15"]
[Round "5.26"]
[White "Hnatyshyn, Anastasiya"]
[Black "Kruchak, Lesia"]
[Result "1-0"]
[ECO "B42"]
[WhiteElo "2017"]
[BlackElo "1843"]
[Annotator "RC"]
[PlyCount "73"]
[EventDate "2024.03.06"]
[EventType "swiss"]
[EventCountry "UKR"]
[SourceTitle "playchess.com"]
[Source "ChessBase"]
[SourceQuality "1"]
[TimeControl "600+5"]

1. e4 {[%emt 0:00:02]} c5 {[%emt 0:00:01]} 2. Nf3 {[%emt 0:00:02]} e6 {[%emt 0:00:02]} 3. d4 {[%emt 0:00:02]} cxd4 {[%emt 0:00:01]} 4. Nxd4 {[%emt 0:00:02]} a6 {[%emt 0:00:01]} 5. Bd3 {[%emt 0:00:02]} Qc7 {[%emt 0:00:03]} 6. Be3 {[%emt 0:00:02]} Nf6 {[%emt 0:00:01]} 7. O-O {[%emt 0:00:03]} Be7 {[%emt 0:00:08]} 8. Nd2 {[%emt 0:00:12]} b5 {[%emt 0:00:05]} 9. f4 {[%emt 0:00:08]} d6 {[%emt 0:00:04]} 10. Qe2 {[%emt 0:00:28]} O-O {[%emt 0:00:11]} 11. Rac1 {[%emt 0:00:31]} Bb7 {[%emt 0:00:19]} 12. c4 {[%emt 0:01:29]} b4 {[%emt 0:00:04]} 13. Bb1 {[%emt 0:01:13]} Nbd7 {[%emt 0:00:14]} 14. Kh1 {[%emt 0:00:23]} Nc5 {[%emt 0:00:48]} 15. Bg1 {[%emt 0:00:02]} Rac8 {[%emt 0:01:04]} 16. Rf3 {[%emt 0:00:42]} g6 {[%emt 0:00:39]} 17. Rh3 {[%emt 0:00:27]} e5 {[%emt 0:01:09]} 18. N4f3 {[%emt 0:00:34]} Ne6 {[%emt 0:00:28]} 19. g3 {[%emt 0:01:04]} exf4 {[%emt 0:00:29]} 20. Nb3 {[%emt 0:00:27]} Qc6 {[%emt 0:01:52]} 21. Na5 {[%emt 0:00:28]} Qc7 {[%emt 0:00:01]} 22. Nxb7 {[%emt 0:00:01]} Qxb7 {[%emt 0:00:01]} 23. b3 {[%emt 0:00:42]} Rfd8 {[%emt 0:00:32]} 24. Re1 {[%emt 0:00:14]} Bf8 {[%emt 0:00:22]} 25. Qd2 {[%emt 0:00:55]} fxg3 {[%emt 0:01:24]} 26. hxg3 {[%emt 0:00:01]} Bg7 {[%emt 0:00:00]} 27. Kg2 {[%emt 0:00:24]} Ng4 {[%emt 0:00:06]} 28. Rf1 {[%emt 0:00:14]} Bc3 {[%emt 0:00:17]} 29. Qd1 {[%emt 0:00:31]} Nc5 {[%emt 0:00:23]} 30. Ng5 {[%emt 0:00:19]} Nf6 {[%emt 0:00:50]} 31. Bd4 {[%emt 0:00:11]} Ncxe4 {[%emt 0:00:24]} 32. Bxe4 {[%emt 0:00:07]} Nxe4 {[%emt 0:00:04]} 33. Rxf7 {[%emt 0:00:05]} Nf2+ {[%emt 0:00:15]} 34. Rxb7 {[%emt 0:00:05]} Nxd1 {[%emt 0:00:01]} 35. Rg7+ {[%emt 0:00:06]} Kf8 {[%emt 0:00:08]} 36. Ne6+ {[%emt 0:00:06]} Ke8 {[%emt 0:00:03]} 37. Rhxh7 {[%emt 0:00:08]} 1-0

[Event "Memorial Ukrainian Chess Warriors 2024"]
[Site "Lviv"]
[Date "2024.03.15"]
[Round "5.27"]
[White "Shevchenko, Yaroslav"]
[Black "Katsan, Danylo"]
[Result "1-0"]
[ECO "E67"]
[WhiteElo "1971"]
[BlackElo "1815"]
[Annotator "RC"]
[PlyCount "76"]
[EventDate "2024.03.06"]
[EventType "swiss"]
[EventCountry "UKR"]
[SourceTitle "playchess.com"]
[Source "ChessBase"]
[SourceQuality "1"]
[TimeControl "600+5"]

1. d4 {[%emt 0:00:06]} Nf6 {[%emt 0:00:01]} 2. c4 {[%emt 0:00:01]} g6 {[%emt 0:00:00]} 3. g3 {[%emt 0:00:02]} Bg7 {[%emt 0:00:02]} 4. Bg2 {[%emt 0:00:02]} O-O {[%emt 0:00:03]} 5. Nc3 {[%emt 0:00:02]} d6 {[%emt 0:00:01]} 6. Nf3 {[%emt 0:00:01]} Nbd7 {[%emt 0:00:03]} 7. O-O {[%emt 0:00:05]} c5 {[%emt 0:00:02]} 8. d5 {[%emt 0:00:03]} Rb8 {[%emt 0:00:03]} 9. a4 {[%emt 0:00:02]} Re8 {[%emt 0:00:17]} 10. h3 {[%emt 0:00:04]} Nb6 {[%emt 0:00:16]} 11. Qd3 {[%emt 0:00:53]} e6 12. Nd2 {[%emt 0:00:00]} exd5 {[%emt 0:00:12]} 13. cxd5 {[%emt 0:00:08]} Nbd7 14. Nc4 {[%emt 0:00:02]} Ne5 {[%emt 0:00:41]} 15. Nxe5 {[%emt 0:00:04]} Rxe5 {[%emt 0:00:15]} 16. e4 {[%emt 0:00:08]} a6 {[%emt 0:00:49]} 17. Re1 {[%emt 0:00:15]} Re8 {[%emt 0:00:10]} 18. Bf4 {[%emt 0:00:10]} Nh5 {[%emt 0:01:45]} 19. Bd2 {[%emt 0:01:35]} Qf6 {[%emt 0:00:09]} 20. Nd1 {[%emt 0:00:21]} Qd4 {[%emt 0:01:18]} 21. Qc2 {[%emt 0:01:52]} Qe5 22. Bc3 Qe7 {[%emt 0:00:16]} 23. Ne3 {[%emt 0:00:16]} b5 {[%emt 0:00:19]} 24. axb5 {[%emt 0:00:02]} axb5 {[%emt 0:00:02]} 25. b4 {[%emt 0:00:07]} c4 {[%emt 0:01:11]} 26. Ra5 {[%emt 0:00:09]} Bxc3 {[%emt 0:00:51]} 27. Qxc3 {[%emt 0:00:02]} Qe5 {[%emt 0:00:00]} 28. Qxe5 {[%emt 0:00:08]} Rxe5 29. Nc2 {[%emt 0:00:29]} Nf6 {[%emt 0:00:20]} 30. Nd4 {[%emt 0:00:23]} Bd7 31. f4 Re7 {[%emt 0:00:28]} 32. Ra7 {[%emt 0:00:09]} Nxd5 {[%emt 0:01:19]} 33. Rb1 {[%emt 0:00:16]} Nc3 {[%emt 0:00:10]} 34. Rc1 {[%emt 0:00:02]} Nxe4 {[%emt 0:00:09]} 35. Rxd7 {[%emt 0:00:34]} Rxd7 {[%emt 0:00:04]} 36. Bf3 {[%emt 0:00:00]} Rb6 {[%emt 0:00:01]} 37. Ra1 {[%emt 0:00:47]} Rc7 {[%emt 0:01:35]} 38. Be2 Kg7 {[%emt 0:00:00]} 1-0